[Event "FIDE WSTC Open 50 2025"]
[Site "Prague"]
[Date "2025.02.20"]
[Round "4.19"]
[White "Josse, Mark"]
[Black "Zvara, Petr"]
[Result "0-1"]
[Annotator "ChessBase"]
[ECO "A16"]
[WhiteElo "2139"]
[BlackElo "2330"]
[PlyCount "68"]
[EventDate "2025.02.17"]
[EventType "team-tourn"]
[EventCountry "CZE"]
[SourceTitle "playchess.com"]
[Source "ChessBase"]
[SourceQuality "1"]
[TimeControl "40/5400+30:1800+30"]

1. c4 {[%emt 0:00:02]} Nf6 {[%emt 0:02:03]} 2. Nc3 {[%emt 0:00:23]} g6 {[%emt 0:00:26]} 3. e4 {[%emt 0:00:15]} d6 {[%emt 0:00:08]} 4. g3 {[%emt 0:00:26]} Bg7 {[%emt 0:00:28]} 5. Bg2 {[%emt 0:00:09]} O-O {[%emt 0:00:11]} 6. Nge2 {[%emt 0:00:25]} c5 {[%emt 0:01:46]} 7. O-O {[%emt 0:00:26]} Nc6 {[%emt 0:00:02]} 8. d3 {[%emt 0:00:07]} a6 {[%emt 0:00:30]} 9. h3 {[%emt 0:00:21]} Rb8 {[%emt 0:00:14]} 10. a4 {[%emt 0:00:09]} Ne8 {[%emt 0:00:34]} 11. Be3 {[%emt 0:00:36]} Nc7 {[%emt 0:00:04]} 12. d4 {[%emt 0:00:10]} cxd4 {[%emt 0:00:51]} 13. Nxd4 {[%emt 0:00:09]} Bd7 {[%emt 0:07:33]} 14. Rb1 {[%emt 0:21:41]} Nxd4 {[%emt 0:10:22]} 15. Bxd4 {[%emt 0:00:10]} b5 {[%emt 0:00:14]} 16. cxb5 {[%emt 0:07:06]} axb5 {[%emt 0:00:06]} 17. Bxg7 {[%emt 0:01:05]} Kxg7 {[%emt 0:00:05]} 18. Qd4+ {[%emt 0:00:59]} Kg8 {[%emt 0:00:07]} 19. axb5 {[%emt 0:01:18]} Nxb5 {[%emt 0:00:43]} 20. Nxb5 {[%emt 0:00:25]} Rxb5 {[%emt 0:14:25]} 21. b4 {[%emt 0:00:47]} Qb6 {[%emt 0:02:16]} 22. Qxb6 {[%emt 0:03:01]} Rxb6 {[%emt 0:00:04]} 23. Rfc1 {[%emt 0:07:25]} Bc6 {[%emt 0:05:12]} 24. Rb2 {[%emt 0:06:43]} Ra8 {[%emt 0:19:34]} 25. e5 {[%emt 0:32:04]} Bxg2 {[%emt 0:00:39]} 26. Kxg2 {[%emt 0:00:02]} dxe5 {[%emt 0:02:41]} 27. Re1 {[%emt 0:03:03]} Rb5 {[%emt 0:00:29]} 28. f4 {[%emt 0:02:40]} exf4 {[%emt 0:01:17]} 29. Rxe7 {[%emt 0:00:06]} fxg3 {[%emt 0:00:07]} 30. Kxg3 {[%emt 0:01:05]} Ra3+ {[%emt 0:01:27]} 31. Kg4 {[%emt 0:01:22]} h5+ {[%emt 0:05:17]} 32. Kh4 {[%emt 0:01:33]} Kg7 {[%emt 0:01:13]} 33. Rc7 {[%emt 0:03:49]} Kh6 {[%emt 0:01:45]} 34. Rc6 {[%emt 0:00:05]} Rd5 {[%emt 0:00:32]} 0-1

[Event "FIDE WSTC Open 50 2025"]
[Site "Prague"]
[Date "2025.02.20"]
[Round "4.20"]
[White "Trickov, Vasil"]
[Black "McMichael, Richard J"]
[Result "1-0"]
[Annotator "ChessBase"]
[ECO "A40"]
[WhiteElo "2301"]
[BlackElo "2118"]
[PlyCount "137"]
[EventDate "2025.02.17"]
[EventType "team-tourn"]
[EventCountry "CZE"]
[SourceTitle "playchess.com"]
[Source "ChessBase"]
[SourceQuality "1"]
[TimeControl "40/5400+30:1800+30"]

1. d4 {[%emt 0:05:50]} e6 {[%emt 0:00:31]} 2. g3 {[%emt 0:01:20]} f5 {[%emt 0:00:29]} 3. Bg2 {[%emt 0:00:36]} Nf6 {[%emt 0:00:18]} 4. c4 {[%emt 0:00:44]} d5 {[%emt 0:00:35]} 5. Nf3 {[%emt 0:00:52]} c6 {[%emt 0:00:36]} 6. O-O {[%emt 0:00:49]} Bd6 {[%emt 0:00:19]} 7. b3 {[%emt 0:02:05]} Qe7 {[%emt 0:00:49]} 8. a4 {[%emt 0:00:52]} O-O {[%emt 0:02:58]} 9. Ba3 {[%emt 0:02:36]} Ne4 {[%emt 0:01:00]} 10. e3 {[%emt 0:01:50]} Bd7 {[%emt 0:02:38]} 11. Bxd6 {[%emt 0:06:40]} Nxd6 {[%emt 0:00:34]} 12. Nbd2 {[%emt 0:02:42]} Be8 {[%emt 0:01:00]} 13. Ne5 {[%emt 0:05:46]} Nd7 {[%emt 0:01:21]} 14. Nxd7 {[%emt 0:04:34]} Bxd7 {[%emt 0:01:39]} 15. Qc2 {[%emt 0:06:27]} Kh8 {[%emt 0:03:33]} 16. Nf3 {[%emt 0:05:54]} Nf7 {[%emt 0:09:34]} 17. Qc3 {[%emt 0:08:27]} Ng5 {[%emt 0:07:15]} 18. Ne5 {[%emt 0:01:36]} Nf7 {[%emt 0:03:17]} 19. Nd3 {[%emt 0:03:21]} Be8 {[%emt 0:05:53]} 20. c5 {[%emt 0:03:24]} h5 {[%emt 0:06:32]} 21. b4 {[%emt 0:03:41]} h4 {[%emt 0:01:48]} 22. Rfb1 {[%emt 0:01:32]} a6 {[%emt 0:04:27]} 23. Bf1 {[%emt 0:02:35]} Nh6 {[%emt 0:03:55]} 24. Be2 {[%emt 0:10:47]} Qg5 {[%emt 0:03:32]} 25. Nf4 {[%emt 0:03:41]} Qf6 {[%emt 0:01:24]} 26. gxh4 {[%emt 0:05:18]} Qxh4 {[%emt 0:01:43]} 27. f3 {[%emt 0:00:10]} Qf6 {[%emt 0:02:58]} 28. Nd3 {[%emt 0:02:16]} Qg5+ {[%emt 0:02:54]} 29. Kf2 {[%emt 0:00:02]} Qh4+ {[%emt 0:00:14]} 30. Kg1 {[%emt 0:00:03]} Rf6 {[%emt 0:01:04]} 31. Nf4 {[%emt 0:02:24]} g5 {[%emt 0:02:33]} 32. Ng2 {[%emt 0:00:11]} Qh5 {[%emt 0:01:44]} 33. Qe1 {[%emt 0:01:14]} Bd7 {[%emt 0:03:59]} 34. b5 {[%emt 0:01:53]} a5 {[%emt 0:02:30]} 35. f4 {[%emt 0:02:57]} Qg6 {[%emt 0:01:51]} 36. fxg5 {[%emt 0:01:38]} Qxg5 {[%emt 0:00:11]} 37. Qh4 {[%emt 0:00:34]} Qxh4 {[%emt 0:01:49]} 38. Nxh4 {[%emt 0:00:02]} Rg8+ {[%emt 0:00:37]} 39. Kf2 {[%emt 0:00:43]} f4 {[%emt 0:02:52]} 40. Rg1 {[%emt 0:00:59]} fxe3+ {[%emt 0:00:35]} 41. Kxe3 {[%emt 0:30:06]} Nf5+ {[%emt 0:36:21]} 42. Nxf5 {[%emt 0:00:33]} Rxf5 {[%emt 0:00:22]} 43. Rxg8+ {[%emt 0:00:27]} Kxg8 {[%emt 0:00:06]} 44. Rg1+ {[%emt 0:01:08]} Kf7 {[%emt 0:00:44]} 45. Bd3 {[%emt 0:00:00]} Rf6 {[%emt 0:00:00]} 46. h4 {[%emt 0:00:00]} Rh6 {[%emt 0:00:00]} 47. h5 {[%emt 0:00:00]} Kf6 {[%emt 0:00:00]} 48. Be2 {[%emt 0:00:00]} Be8 {[%emt 0:00:00]} 49. b6 {[%emt 0:00:00]} Bf7 {[%emt 0:00:00]} 50. Rf1+ {[%emt 0:00:00]} Ke7 {[%emt 0:00:00]} 51. Bg4 {[%emt 0:00:00]} Bg8 {[%emt 0:00:00]} 52. Rf2 {[%emt 0:00:38]} Bh7 {[%emt 0:00:00]} 53. Re2 {[%emt 0:00:54]} Kf6 {[%emt 0:00:00]} 54. Kf4 {[%emt 0:00:20]} Be4 {[%emt 0:00:00]} 55. Rf2 {[%emt 0:00:25]} Rh8 {[%emt 0:00:00]} 56. Rh2 {[%emt 0:00:47]} Rh6 {[%emt 0:00:00]} 57. Be2 {[%emt 0:00:20]} Bf5 {[%emt 0:00:00]} 58. Rf2 {[%emt 0:00:53]} Rh8 {[%emt 0:00:00]} 59. Rg2 {[%emt 0:00:46]} Be4 {[%emt 0:00:00]} 60. Rg5 {[%emt 0:00:39]} Bc2 {[%emt 0:01:06]} 61. Bg4 {[%emt 0:00:35]} Bxa4 {[%emt 0:04:01]} 62. Rg6+ {[%emt 0:00:12]} Kf7 {[%emt 0:00:22]} 63. Bxe6+ {[%emt 0:01:43]} Ke7 {[%emt 0:00:07]} 64. Bg4 {[%emt 0:00:35]} Rh7 {[%emt 0:01:20]} 65. h6 {[%emt 0:01:16]} Bc2 {[%emt 0:00:43]} 66. Re6+ {[%emt 0:00:07]} Kf7 {[%emt 0:00:40]} 67. Kg5 {[%emt 0:00:20]} a4 {[%emt 0:00:39]} 68. Re5 {[%emt 0:01:14]} a3 69. Bh5+ 1-0

[Event "FIDE WSTC Open 50 2025"]
[Site "Prague"]
[Date "2025.02.20"]
[Round "4.21"]
[White "Gronn, Atle"]
[Black "Bischoff, Klaus"]
[Result "1/2-1/2"]
[Annotator "RC"]
[ECO "A05"]
[WhiteElo "2366"]
[BlackElo "2432"]
[PlyCount "133"]
[EventDate "2025.02.17"]
[EventType "team-tourn"]
[EventCountry "CZE"]
[SourceTitle "playchess.com"]
[Source "ChessBase"]
[SourceQuality "1"]
[TimeControl "40/5400+30:1800+30"]

1. Nf3 {[%emt 0:00:09]} Nf6 {[%emt 0:00:13]} 2. c4 {[%emt 0:00:05]} d6 {[%emt 0:01:31]} 3. d4 {[%emt 0:00:16]} Nbd7 {[%emt 0:00:36]} 4. g3 {[%emt 0:00:24]} e5 {[%emt 0:00:20]} 5. Nc3 {[%emt 0:01:46]} Be7 {[%emt 0:02:26]} 6. Bg2 {[%emt 0:00:14]} O-O {[%emt 0:00:11]} 7. O-O {[%emt 0:00:09]} c6 {[%emt 0:00:27]} 8. e4 {[%emt 0:01:45]} Qc7 {[%emt 0:01:29]} 9. h3 {[%emt 0:00:56]} a6 {[%emt 0:03:05]} 10. Qe2 {[%emt 0:17:30]} Re8 {[%emt 0:15:30]} 11. d5 {[%emt 0:05:05]} b5 {[%emt 0:07:30]} 12. dxc6 {[%emt 0:02:24]} Qxc6 {[%emt 0:00:07]} 13. cxb5 {[%emt 0:04:59]} axb5 {[%emt 0:00:46]} 14. Qxb5 {[%emt 0:03:18]} Bb7 {[%emt 0:05:21]} 15. Rd1 {[%emt 0:12:33]} Nc5 {[%emt 0:03:58]} 16. Qxc6 {[%emt 0:02:21]} Bxc6 {[%emt 0:00:07]} 17. Bg5 {[%emt 0:03:01]} Nfxe4 {[%emt 0:12:39]} 18. Nxe4 {[%emt 0:02:15]} Bxe4 {[%emt 0:05:47]} 19. Bxe7 {[%emt 0:00:22]} Rxe7 {[%emt 0:00:06]} 20. Rxd6 {[%emt 0:00:57]} g6 {[%emt 0:02:59]} 21. Nd2 {[%emt 0:05:26]} Bxg2 {[%emt 0:00:59]} 22. Kxg2 {[%emt 0:00:04]} e4 {[%emt 0:00:20]} 23. b4 {[%emt 0:04:55]} Nd3 {[%emt 0:00:55]} 24. b5 {[%emt 0:04:11]} f5 {[%emt 0:03:35]} 25. a4 {[%emt 0:02:08]} Rc7 {[%emt 0:00:35]} 26. b6 {[%emt 0:09:40]} Rc2 {[%emt 0:00:07]} 27. a5 {[%emt 0:01:07]} Rxd2 {[%emt 0:00:36]} 28. b7 {[%emt 0:00:34]} Rf8 {[%emt 0:09:22]} 29. Rb6 {[%emt 0:07:02]} Rxf2+ {[%emt 0:02:35]} 30. Kg1 {[%emt 0:00:06]} f4 {[%emt 0:00:15]} 31. gxf4 {[%emt 0:01:31]} e3 {[%emt 0:03:34]} 32. b8=Q {[%emt 0:04:02]} Rxb8 {[%emt 0:00:11]} 33. Rxb8+ {[%emt 0:00:03]} Kf7 {[%emt 0:00:12]} 34. Rb3 {[%emt 0:02:22]} Rd2 {[%emt 0:00:19]} 35. Rxd3 {[%emt 0:03:18]} Rxd3 {[%emt 0:00:06]} 36. Kf1 {[%emt 0:00:20]} Rd7 {[%emt 0:08:49]} 37. Ke2 {[%emt 0:00:06]} Ke6 {[%emt 0:00:13]} 38. a6 {[%emt 0:00:17]} Ra7 {[%emt 0:00:08]} 39. Kxe3 {[%emt 0:00:08]} Kd5 {[%emt 0:00:08]} 40. Ra5+ {[%emt 0:00:49]} Kc6 {[%emt 0:00:07]} 41. Kd4 {[%emt 0:31:12]} Kb6 {[%emt 0:30:07]} 42. Ra3 {[%emt 0:00:47]} Rd7+ {[%emt 0:00:21]} 43. Ke4 {[%emt 0:00:00]} Ka7 {[%emt 0:00:00]} 44. h4 {[%emt 0:00:00]} Rf7 {[%emt 0:00:00]} 45. Ra5 {[%emt 0:00:00]} Rf6 {[%emt 0:00:00]} 46. Kf3 {[%emt 0:00:00]} Rc6 {[%emt 0:00:00]} 47. Kg4 {[%emt 0:00:00]} Rc1 {[%emt 0:00:00]} 48. h5 {[%emt 0:00:00]} Rg1+ {[%emt 0:00:00]} 49. Kf3 {[%emt 0:00:00]} Rf1+ {[%emt 0:00:00]} 50. Kg3 {[%emt 0:00:00]} Rh1 {[%emt 0:00:00]} 51. Kg2 {[%emt 0:00:00]} Rh4 {[%emt 0:00:00]} 52. Kf3 {[%emt 0:00:00]} Rh1 {[%emt 0:00:00]} 53. Re5 {[%emt 0:01:25]} gxh5 {[%emt 0:00:00]} 54. Ra5 {[%emt 0:03:03]} h4 {[%emt 0:00:00]} 55. Kg4 {[%emt 0:01:44]} h3 {[%emt 0:00:00]} 56. Ra2 {[%emt 0:00:41]} h5+ {[%emt 0:00:00]} 57. Kg3 {[%emt 0:00:07]} Rf1 {[%emt 0:00:00]} 58. Rh2 {[%emt 0:01:02]} Kxa6 {[%emt 0:00:00]} 59. Rxh3 {[%emt 0:00:10]} Kb6 {[%emt 0:00:00]} 60. Rxh5 {[%emt 0:00:07]} Kc6 {[%emt 0:00:00]} 61. Re5 {[%emt 0:00:19]} Rg1+ {[%emt 0:00:00]} 62. Kf3 {[%emt 0:00:15]} Kd6 {[%emt 0:00:00]} 63. Re2 {[%emt 0:00:23]} Rg7 {[%emt 0:00:00]} 64. f5 {[%emt 0:01:40]} Re7 {[%emt 0:00:00]} 65. Rd2+ {[%emt 0:00:37]} Ke5 {[%emt 0:00:07]} 66. Re2+ {[%emt 0:00:05]} Kf6 {[%emt 0:00:04]} 67. Rxe7 1/2-1/2

[Event "FIDE WSTC Open 50 2025"]
[Site "Prague"]
[Date "2025.02.20"]
[Round "4.22"]
[White "Seul, Georg"]
[Black "Dahl, Fredrik A"]
[Result "1-0"]
[Annotator "ChessBase"]
[ECO "C24"]
[WhiteElo "2329"]
[BlackElo "2198"]
[PlyCount "100"]
[EventDate "2025.02.17"]
[EventType "team-tourn"]
[EventCountry "CZE"]
[SourceTitle "playchess.com"]
[Source "ChessBase"]
[SourceQuality "1"]
[TimeControl "40/5400+30:1800+30"]

1. e4 {[%emt 0:00:03]} e5 {[%emt 0:00:06]} 2. Bc4 {[%emt 0:00:23]} Nf6 {[%emt 0:00:14]} 3. d3 {[%emt 0:00:11]} c6 {[%emt 0:00:16]} 4. Nf3 {[%emt 0:00:22]} d5 {[%emt 0:00:20]} 5. Bb3 {[%emt 0:00:08]} Bb4+ {[%emt 0:00:23]} 6. Bd2 {[%emt 0:00:44]} Bxd2+ {[%emt 0:00:25]} 7. Nbxd2 {[%emt 0:00:12]} a5 {[%emt 0:02:49]} 8. a4 {[%emt 0:01:07]} Nbd7 {[%emt 0:02:49]} 9. O-O {[%emt 0:00:58]} O-O {[%emt 0:01:57]} 10. Re1 {[%emt 0:01:43]} Re8 {[%emt 0:02:35]} 11. d4 {[%emt 0:01:37]} exd4 {[%emt 0:11:05]} 12. exd5 {[%emt 0:00:34]} Rxe1+ {[%emt 0:00:56]} 13. Nxe1 {[%emt 0:01:08]} Nb6 {[%emt 0:04:17]} 14. dxc6 {[%emt 0:06:40]} bxc6 {[%emt 0:00:07]} 15. Nd3 {[%emt 0:01:39]} Bg4 {[%emt 0:01:35]} 16. Bxf7+ {[%emt 0:04:27]} Kf8 {[%emt 0:10:41]} 17. f3 {[%emt 0:01:17]} Qe7 {[%emt 0:06:14]} 18. Bb3 {[%emt 0:23:53]} Qe3+ {[%emt 0:03:59]} 19. Kh1 {[%emt 0:02:39]} Bf5 {[%emt 0:03:15]} 20. Nf1 {[%emt 0:02:58]} Qe7 {[%emt 0:01:29]} 21. Ng3 {[%emt 0:02:29]} Be6 {[%emt 0:01:03]} 22. Bxe6 {[%emt 0:01:24]} Qxe6 {[%emt 0:00:09]} 23. Nf4 {[%emt 0:01:15]} Qc4 {[%emt 0:09:22]} 24. b3 {[%emt 0:15:04]} Qb4 {[%emt 0:02:52]} 25. Nge2 {[%emt 0:01:27]} Kf7 {[%emt 0:04:04]} 26. Qxd4 {[%emt 0:03:05]} Qxd4 {[%emt 0:00:26]} 27. Nxd4 {[%emt 0:00:04]} c5 {[%emt 0:00:36]} 28. Nc6 {[%emt 0:03:18]} g5 {[%emt 0:01:31]} 29. Nd3 {[%emt 0:00:19]} c4 {[%emt 0:01:31]} 30. Nce5+ {[%emt 0:01:01]} Kg7 {[%emt 0:00:29]} 31. bxc4 {[%emt 0:09:41]} Rc8 {[%emt 0:00:40]} 32. c5 {[%emt 0:01:16]} Nbd7 {[%emt 0:00:19]} 33. Nxd7 {[%emt 0:01:00]} Nxd7 {[%emt 0:00:06]} 34. Rc1 {[%emt 0:02:50]} Nxc5 {[%emt 0:00:30]} 35. Nxc5 {[%emt 0:00:04]} Rxc5 {[%emt 0:00:09]} 36. c4 {[%emt 0:00:05]} Kf6 {[%emt 0:01:16]} 37. Kg1 {[%emt 0:00:37]} Ke5 {[%emt 0:04:53]} 38. Kf2 {[%emt 0:00:43]} Kd4 {[%emt 0:01:25]} 39. Rd1+ {[%emt 0:03:25]} Kxc4 {[%emt 0:01:17]} 40. Rc1+ {[%emt 0:00:23]} Kb4 {[%emt 0:00:10]} 41. Rxc5 {[%emt 0:30:06]} Kxc5 {[%emt 0:30:08]} 42. g3 {[%emt 0:00:16]} Kd4 {[%emt 0:01:17]} 43. Ke2 {[%emt 0:00:00]} h6 {[%emt 0:00:00]} 44. Kd2 {[%emt 0:00:31]} h5 {[%emt 0:00:00]} 45. h4 {[%emt 0:00:40]} gxh4 {[%emt 0:00:00]} 46. gxh4 {[%emt 0:00:04]} Ke5 {[%emt 0:00:00]} 47. Ke3 {[%emt 0:00:03]} Kf5 {[%emt 0:00:00]} 48. f4 {[%emt 0:00:09]} Kg4 {[%emt 0:00:00]} 49. Ke4 {[%emt 0:00:05]} Kxh4 {[%emt 0:00:00]} 50. f5 {[%emt 0:00:06]} Kg5 {[%emt 0:00:00]} 1-0

[Event "FIDE WSTC Open 50 2025"]
[Site "Prague"]
[Date "2025.02.20"]
[Round "4.23"]
[White "Kirkebo, Carl Peter"]
[Black "Schulz, Klaus-Juergen"]
[Result "0-1"]
[Annotator "RC"]
[ECO "A37"]
[WhiteElo "2148"]
[BlackElo "2345"]
[PlyCount "100"]
[EventDate "2025.02.17"]
[EventType "team-tourn"]
[EventCountry "CZE"]
[SourceTitle "playchess.com"]
[Source "ChessBase"]
[SourceQuality "1"]
[TimeControl "40/5400+30:1800+30"]

1. c4 {[%emt 0:00:09]} c5 {[%emt 0:04:24]} 2. Nf3 {[%emt 0:00:23]} Nc6 {[%emt 0:00:24]} 3. g3 {[%emt 0:01:00]} g6 {[%emt 0:01:15]} 4. Bg2 {[%emt 0:00:30]} Bg7 {[%emt 0:00:05]} 5. Nc3 {[%emt 0:00:54]} e5 {[%emt 0:03:53]} 6. d3 {[%emt 0:03:29]} Nge7 {[%emt 0:00:37]} 7. a3 {[%emt 0:02:22]} a5 {[%emt 0:00:34]} 8. Bd2 {[%emt 0:06:05]} O-O {[%emt 0:01:37]} 9. O-O {[%emt 0:01:40]} d6 {[%emt 0:03:34]} 10. Rb1 {[%emt 0:03:58]} Rb8 {[%emt 0:24:09]} 11. Ne1 {[%emt 0:09:40]} Be6 {[%emt 0:04:21]} 12. Nc2 {[%emt 0:05:22]} d5 {[%emt 0:16:06]} 13. cxd5 {[%emt 0:03:13]} Nxd5 {[%emt 0:00:03]} 14. Ne4 {[%emt 0:05:45]} b6 {[%emt 0:00:40]} 15. b4 {[%emt 0:30:32]} cxb4 {[%emt 0:08:38]} 16. axb4 {[%emt 0:00:12]} axb4 {[%emt 0:00:53]} 17. Nxb4 {[%emt 0:00:29]} Ndxb4 {[%emt 0:00:24]} 18. Bxb4 {[%emt 0:00:40]} Nxb4 {[%emt 0:00:35]} 19. Rxb4 {[%emt 0:00:07]} f5 {[%emt 0:00:29]} 20. Nd2 {[%emt 0:01:06]} e4 {[%emt 0:02:12]} 21. Nc4 {[%emt 0:04:00]} b5 {[%emt 0:02:27]} 22. Ne3 {[%emt 0:02:45]} Qa5 {[%emt 0:01:26]} 23. Qd2 {[%emt 0:02:47]} Rfd8 {[%emt 0:00:49]} 24. Rd1 {[%emt 0:00:42]} Bf8 {[%emt 0:05:53]} 25. Rbb1 {[%emt 0:00:37]} b4 {[%emt 0:02:28]} 26. Qe1 {[%emt 0:01:13]} exd3 {[%emt 0:05:20]} 27. Rxd3 {[%emt 0:00:21]} Bf7 {[%emt 0:02:28]} 28. Qd2 {[%emt 0:04:09]} Rxd3 {[%emt 0:00:55]} 29. exd3 {[%emt 0:01:53]} Qa2 {[%emt 0:00:23]} 30. Qxa2 {[%emt 0:01:46]} Bxa2 {[%emt 0:00:02]} 31. Bd5+ {[%emt 0:02:51]} Bxd5 {[%emt 0:00:19]} 32. Nxd5 {[%emt 0:00:01]} Rd8 {[%emt 0:04:56]} 33. Nf4 {[%emt 0:00:29]} Kf7 {[%emt 0:00:16]} 34. h4 {[%emt 0:00:41]} Bd6 {[%emt 0:02:42]} 35. Kg2 {[%emt 0:02:21]} Bxf4 {[%emt 0:01:11]} 36. gxf4 {[%emt 0:00:07]} Rd4 {[%emt 0:00:04]} 37. Kf3 {[%emt 0:00:46]} Rxd3+ {[%emt 0:00:10]} 38. Ke2 {[%emt 0:00:06]} Rd4 {[%emt 0:00:06]} 39. Ke3 {[%emt 0:00:36]} Re4+ {[%emt 0:00:20]} 40. Kf3 {[%emt 0:00:22]} Ke6 {[%emt 0:00:45]} 41. Rd1 {[%emt 0:31:08]} b3 {[%emt 0:31:51]} 42. Rb1 {[%emt 0:00:42]} Rb4 {[%emt 0:00:00]} 43. Ke3 {[%emt 0:00:00]} Kd5 {[%emt 0:00:00]} 44. Kd3 {[%emt 0:00:00]} b2 {[%emt 0:00:00]} 45. Kc3 {[%emt 0:00:00]} Rb7 {[%emt 0:00:00]} 46. Kd3 {[%emt 0:00:00]} Rb3+ {[%emt 0:00:00]} 47. Kc2 {[%emt 0:00:00]} Kc4 {[%emt 0:00:00]} 48. Kd2 {[%emt 0:00:00]} Rb6 {[%emt 0:00:00]} 49. Kc2 {[%emt 0:00:00]} Rb7 {[%emt 0:00:00]} 50. Kd2 {[%emt 0:00:00]} Kb3 {[%emt 0:00:00]} 0-1

[Event "FIDE WSTC Open 50 2025"]
[Site "Prague"]
[Date "2025.02.20"]
[Round "4.24"]
[White "Wolf, Volker"]
[Black "Berg, Anders Hoyer"]
[Result "1/2-1/2"]
[Annotator "ChessBase"]
[ECO "A00"]
[WhiteElo "2206"]
[BlackElo "2073"]
[PlyCount "124"]
[EventDate "2025.02.17"]
[EventType "team-tourn"]
[EventCountry "CZE"]
[SourceTitle "playchess.com"]
[Source "ChessBase"]
[SourceQuality "1"]
[TimeControl "40/5400+30:1800+30"]

1. g3 {[%emt 0:00:15]} d5 {[%emt 0:00:47]} 2. Bg2 {[%emt 0:00:07]} Nf6 {[%emt 0:00:53]} 3. d3 {[%emt 0:00:17]} c6 {[%emt 0:04:03]} 4. Nd2 {[%emt 0:00:48]} e5 {[%emt 0:02:17]} 5. e4 {[%emt 0:00:37]} Bd6 {[%emt 0:04:22]} 6. Ngf3 {[%emt 0:00:13]} O-O {[%emt 0:01:30]} 7. O-O {[%emt 0:00:10]} h6 {[%emt 0:04:03]} 8. Re1 {[%emt 0:01:13]} Re8 {[%emt 0:04:22]} 9. b3 {[%emt 0:00:53]} Bg4 {[%emt 0:02:58]} 10. h3 {[%emt 0:03:19]} Bh5 {[%emt 0:02:42]} 11. Bb2 {[%emt 0:01:47]} d4 {[%emt 0:06:36]} 12. Qc1 {[%emt 0:03:22]} Bxf3 {[%emt 0:06:37]} 13. Nxf3 {[%emt 0:00:35]} Nbd7 {[%emt 0:01:15]} 14. Nh4 {[%emt 0:02:28]} Bf8 {[%emt 0:00:04]} 15. Nf5 {[%emt 0:03:00]} Kh7 {[%emt 0:08:08]} 16. Qd2 {[%emt 0:02:25]} g6 {[%emt 0:02:03]} 17. Nh4 {[%emt 0:00:10]} a5 {[%emt 0:07:00]} 18. a3 {[%emt 0:04:33]} b6 {[%emt 0:02:42]} 19. Bc1 {[%emt 0:09:14]} Bg7 {[%emt 0:07:00]} 20. Qe2 {[%emt 0:09:31]} Qe7 {[%emt 0:08:34]} 21. Nf3 {[%emt 0:09:41]} c5 {[%emt 0:05:54]} 22. a4 {[%emt 0:01:20]} Rf8 {[%emt 0:01:12]} 23. Nd2 {[%emt 0:01:01]} Ne8 {[%emt 0:03:54]} 24. Nc4 {[%emt 0:05:16]} Nd6 {[%emt 0:01:33]} 25. Nxd6 {[%emt 0:01:05]} Qxd6 {[%emt 0:00:10]} 26. h4 {[%emt 0:00:16]} Rae8 {[%emt 0:03:46]} 27. Bh3 {[%emt 0:03:59]} h5 {[%emt 0:01:51]} 28. Rf1 {[%emt 0:04:49]} Bh6 {[%emt 0:04:28]} 29. Bxh6 {[%emt 0:02:17]} Kxh6 {[%emt 0:00:05]} 30. Qd2+ {[%emt 0:00:56]} Kg7 {[%emt 0:00:54]} 31. Rae1 {[%emt 0:02:20]} Qe7 {[%emt 0:00:50]} 32. Re2 {[%emt 0:01:18]} Qd6 {[%emt 0:03:09]} 33. Kh2 {[%emt 0:00:45]} Re7 {[%emt 0:00:14]} 34. f3 {[%emt 0:01:59]} f6 {[%emt 0:00:39]} 35. Ref2 {[%emt 0:00:33]} Ref7 {[%emt 0:00:26]} 36. Kg2 {[%emt 0:04:15]} Qe7 {[%emt 0:00:23]} 37. Qe1 {[%emt 0:03:30]} Qd8 {[%emt 0:00:45]} 38. Qe2 {[%emt 0:01:56]} Qe7 {[%emt 0:00:23]} 39. Bxd7 {[%emt 0:06:57]} Qxd7 {[%emt 0:00:06]} 40. f4 {[%emt 0:00:17]} exf4 {[%emt 0:00:31]} 41. gxf4 {[%emt 0:30:21]} Kh6 {[%emt 0:10:07]} 42. Rh1 {[%emt 0:00:00]} Rg8 {[%emt 0:03:05]} 43. Kf1 {[%emt 0:00:00]} Qc6 {[%emt 0:12:43]} 44. Rg1 {[%emt 0:00:00]} Rfg7 {[%emt 0:02:08]} 45. Rfg2 {[%emt 0:00:00]} Qd6 {[%emt 0:01:42]} 46. Qf3 {[%emt 0:00:00]} Qe6 {[%emt 0:01:34]} 47. Rg3 {[%emt 0:00:00]} Qd6 {[%emt 0:00:19]} 48. Ke2 {[%emt 0:00:00]} Qe6 {[%emt 0:00:44]} 49. Kd1 {[%emt 0:00:00]} Qd6 {[%emt 0:00:26]} 50. Kc1 {[%emt 0:00:17]} Qe6 {[%emt 0:00:14]} 51. Kb2 {[%emt 0:00:08]} Qd6 {[%emt 0:00:19]} 52. Ka2 {[%emt 0:01:03]} Qe6 {[%emt 0:00:10]} 53. Ka1 {[%emt 0:00:09]} Qd6 {[%emt 0:00:06]} 54. Kb2 {[%emt 0:00:01]} Qe6 {[%emt 0:00:13]} 55. R1g2 {[%emt 0:02:24]} Qd6 {[%emt 0:00:25]} 56. Qf2 {[%emt 0:00:20]} Qe6 {[%emt 0:00:17]} 57. Qf1 {[%emt 0:01:52]} Qd6 {[%emt 0:00:06]} 58. Qf3 {[%emt 0:00:03]} Qe6 {[%emt 0:00:23]} 59. f5 {[%emt 0:06:55]} Qe5 {[%emt 0:00:52]} 60. fxg6 {[%emt 0:01:43]} Rxg6 {[%emt 0:00:26]} 61. Rxg6+ {[%emt 0:01:11]} Rxg6 {[%emt 0:00:03]} 62. Rxg6+ {[%emt 0:00:23]} Kxg6 {[%emt 0:00:03]} 1/2-1/2